Cogmind - Beta 15 @@@ ROGUE MODE // 2025.05.20 @ 17:54:16 Player: Peawet Result: Destroyed by D-53 Grenadier with Mini Grenade Launcher Performance ------------- Evolutions (0) 0 Regions Visited (4) 800 Robots Destroyed (5) 25 Value Destroyed (183) 183 Prototype IDs (23) 460 Alien Tech Used (0) 0 Bonus (300) 300 TOTAL SCORE: 1768 Bonus ------- Aligned with FarCom 300 Cogmind --------- Core Integrity 0/250 Matter 245/300 Energy 100/100 System Corruption 0% Temperature Cool (0) Movement Core (200) Ox3 Location -9/Mines Parts ------- > --- POWER (1) -------- (None) > --- PROPULSION (2) --- (None) > --- UTILITY (2) ------ Medium Storage Unit > --- WEAPON (2) ------- (None) > --- INVENTORY (10) --- Light Ion Engine Reinforced Deuterium Engine Fission Core Flying Fortress v7 Assault Rifle Grenade Launcher Peak State ------------ > --- POWER ------------ Ion Engine > --- PROPULSION ------- Aluminum Leg Aluminum Leg > --- UTILITY ---------- Medium Storage Unit > --- WEAPON ----------- Assault Rifle Makeshift Axe > --- INVENTORY -------- Light Ion Engine Reinforced Deuterium Engine Fission Core Aluminum Leg Flying Fortress v7 Assault Rifle Grenade Launcher [Rating: 13] Favorites ----------- Power Ion Engine Engine Ion Engine Propulsion Aluminum Leg Leg Aluminum Leg Utility Medium Storage Unit Storage Medium Storage Unit Processor Targeting Computer Weapon Assault Rifle Energy Gun Medium Laser Ballistic Gun Assault Rifle Slashing Weapon Makeshift Axe Build | -11 -10 -10 -10 -9 ------- Run | Yrd Mat Min Exi Min Slots Evolved . | . . . . . Power . | . . . . . Propulsion . | . . . . . Utility . | . . . . . Weapon . | . . . . . Parts Attached 14 | 7 1 . 5 1 Power 1 | 1 . . . . Engine 1 | 1 . . . . Core . | . . . . . Reactor . | . . . . . Propulsion 5 | 2 . . 3 . Treads . | . . . . . Leg 5 | 2 . . 3 . Wheel . | . . . . . Hover . | . . . . . Flight . | . . . . . Utility 4 | 1 1 . 2 . Device . | . . . . . Storage 3 | 1 . . 2 . Processor 1 | . 1 . . . Hackware . | . . . . . Protection . | . . . . . Artifact . | . . . . . Weapon 4 | 3 . . . 1 Energy Gun 1 | 1 . . . . Energy Cannon . | . . . . . Ballistic Gun 2 | 2 . . . . Ballistic Cannon . | . . . . . Launcher . | . . . . . Special Weapon . | . . . . . Impact Weapon . | . . . . . Slashing Weapon 1 | . . . . 1 Piercing Weapon . | . . . . . Special Melee Weapon . | . . . . . Unidentified Prototypes . | . . . . . Parts Lost 5 | . . 1 . 4 Power . | . . . . . Propulsion 2 | . . . . 2 Utility 1 | . . 1 . . Weapon 2 | . . . . 2 Highest Loss Streak 4 | . . 1 . 4 To Critical Strikes . | . . . . . Average Backups 6 | 1 3 6 6 6 Power 2 | . 1 1 2 3 Propulsion 1 | . . 2 1 1 Utility . | . . . . . Weapon 2 | . 1 2 2 2 Tool/Special . | . . . . . Unused Backups 5 | . . . . 5 Power 3 | . . . . 3 Propulsion 1 | . . . . 1 Utility . | . . . . . Weapon 1 | . . . . 1 Tool/Special . | . . . . . Average Slot Usage (%) 86 | . 96 95 84 49 Engine 13 | . 14 14 14 3 Leg 27 | . 28 28 28 14 Storage 13 | . 14 14 13 14 Processor 2 | . 11 10 . . Ballistic Gun 27 | . 28 28 28 7 Peak Build Rating 13 | 6 7 8 10 13 Average Rating 7 | 4 6 7 7 9 On Entrance 6 | . 6 7 7 10 Naked Turns . | . . . . . Heaviest Build 19 | 14 14 14 19 15 Greatest Support 20 | 20 20 20 20 10 Greatest Overweight (x) 3 | . . . . 3 Average Overweight (x) . | . . . . . Largest Inventory Capacity 35 | 8 8 8 35 10 Average Capacity 8 | 6 8 8 9 10 Most Carried 10 | 3 5 7 10 10 Average Carried 6 | 1 3 6 7 9 Final Capacity 10 | 8 8 8 10 10 Final Carried 10 | 2 5 7 10 9 Class Distribution -------------------- 100% | Mutant Dominant Class ---------------- Mutant | -10/Materials Mutant | -10/Mines Mutant | -10/Exiles Mutant | -9/Mines Resources | -11 -10 -10 -10 -9 ----------- Run | Yrd Mat Min Exi Min Matter Collected 409 | 233 83 73 20 . Remotely . | . . . . . Salvage Created 218 | . 89 129 . . Parts 8 | . 7 1 . . Haulers Intercepted . | . . . . . Recyclers Shooed . | . . . . . Parts Field Recycled . | . . . . . Retrieved Matter . | . . . . . Parts Self-Destructed . | . . . . . Prevented . | . . . . . Kills | -11 -10 -10 -10 -9 ------- Run | Yrd Mat Min Exi Min Combat Hostiles Destroyed 5 | . 2 3 . . Guns 5 | . 2 3 . . Classes Destroyed 1 | . 1 . . . Grunt 5 | . 2 3 . . Best Kill Streak 2 | . 2 2 . . Combat Bots Only 2 | . 2 2 . . Max Kills in Single Turn 1 | . 1 1 . . Gunslinging . | . . . . . Exploded . | . . . . . Melee . | . . . . . Uniques/NPCs Destroyed . | . . . . . Combat | -11 -10 -10 -10 -9 -------- Run | Yrd Mat Min Exi Min Hostile Shots Fired 68 | . 8 29 . 31 Missed 23 | . 3 13 . 7 Hits 45 | . 5 16 . 24 Melee 3 | . . . . 3 Projectile 42 | . 5 16 . 21 AOE 15 | . . . . 15 Critical Strikes 3 | . . 1 . 2 Damage Taken 1088 | . 55 216 . 817 Core 268 | . . 12 . 256 Absorbed by Shields . | . . . . . Core Remaining (%) 100 | 100 . . . . Volleys Fired 24 | . 6 13 . 5 Largest 2 | . 2 2 . 1 Hottest 40 | . 40 40 . 20 Shots Fired 43 | . 12 26 . 5 Gun 43 | . 12 26 . 5 Cannon . | . . . . . Launcher . | . . . . . Special . | . . . . . Kinetic 43 | . 12 26 . 5 Thermal . | . . . . . Explosive . | . . . . . Electromagnetic . | . . . . . Robot Hit Streak 9 | . 4 9 . 7 Robot Miss Streak 5 | . 2 5 . . Penetration Max . | . . . . . Secondary Targets . | . . . . . Shots Hit Robots 30 | . 8 17 . 5 Core Hits 12 | . 4 7 . 1 Critical Kills . | . . . . . Critical Parts Destroyed . | . . . . . Critical Strikes . | . . . . . Melee Attacks . | . . . . . Impact . | . . . . . Slashing . | . . . . . Piercing . | . . . . . Sneak Attacks . | . . . . . Combat Hostiles . | . . . . . Follow-up Attacks . | . . . . . Damage Inflicted 385 | . 103 218 . 64 Guns 385 | . 103 218 . 64 Cannons . | . . . . . Explosions . | . . . . . Melee . | . . . . . Ramming . | . . . . . Kinetic 385 | . 103 218 . 64 Thermal . | . . . . . Explosive . | . . . . . Electromagnetic . | . . . . . Impact . | . . . . . Slashing . | . . . . . Piercing . | . . . . . Highest Corruption . | . . . . . Average Corruption . | . . . . . Corruption Purged . | . . . . . Corruption Blocked . | . . . . . Overload Shots . | . . . . . Overflow Damage . | . . . . . Projectiles . | . . . . . Explosions . | . . . . . Melee . | . . . . . Knockbacks . | . . . . . Impact . | . . . . . Kinetic . | . . . . . Secondary . | . . . . . Self-Inflicted Damage . | . . . . . Shots . | . . . . . Rammed . | . . . . . Targets Rammed . | . . . . . Kicked . | . . . . . Crushed . | . . . . . Highest Temperature 9 | . . 9 . . Average Temperature 4 | . . 4 . . Received Heat Transfer 201 | . 30 117 . 54 Siege Activations . | . . . . . Martial Activations . | . . . . . Shielding Activations . | . . . . . Robots Disrupted . | . . . . . Combat Hostiles . | . . . . . Robots Corrupted . | . . . . . Combat Hostiles . | . . . . . Parts Fried . | . . . . . Impact Corruptions . | . . . . . Robots Melted . | . . . . . Combat Hostiles . | . . . . . Parts Melted . | . . . . . Heat Transferred . | . . . . . Parts Sabotaged . | . . . . . Parts Stolen . | . . . . . Parts Stripped . | . . . . . Power Chain Reactions . | . . . . . Alert | -11 -10 -10 -10 -9 ------- Run | Yrd Mat Min Exi Min Maximum Alert Level . | . . . . . Low Security (%) 100 | 100 100 100 . 100 Level 1 . | . . . . . Level 2 . | . . . . . Level 3 . | . . . . . Level 4 . | . . . . . Level 5 . | . . . . . High Security . | . . . . . Max Security . | . . . . . Peak Influence 50 | . 50 50 . . Initial 3 | . . 3 . . Average 11 | . 17 11 . . Influence Increases 120 | . 50 70 . . Destroy 0b10 Robot/C 100 | . 40 60 . . Destroy Leader 20 | . 10 10 . . Influence Decreases 120 | . 40 60 20 . Entered New Map 27 | . . 7 20 . Time Decay 93 | . 40 53 . . Squads Dispatched 1 | . 1 . . . Investigation . | . . . . . Extermination . | . . . . . Reinforcement 1 | . 1 . . . Assault . | . . . . . Garrison . | . . . . . Intercept . | . . . . . Searches Triggered . | . . . . . Construction Impeded . | . . . . . Haulers Reinforced . | . . . . . Active Scanning Responses . | . . . . . Cargo Convoy Interrupts . | . . . . . Stealth | -11 -10 -10 -10 -9 --------- Run | Yrd Mat Min Exi Min Distress Signals 1 | . 1 . . . Communications Jammed . | . . . . . Distress Signals . | . . . . . Times Spotted 17 | . 3 4 . 10 Peak Tracking Total 7 | . 2 2 . 7 Tactical Retreats . | . . . . . Traps | -11 -10 -10 -10 -9 ------- Run | Yrd Mat Min Exi Min Traps Triggered . | . . . . . Indirectly . | . . . . . Trap Hack Attempts . | . . . . . Triggered . | . . . . . Disarmed . | . . . . . Reprogrammed . | . . . . . Reused . | . . . . . Traps Extracted . | . . . . . Installed . | . . . . . Triggered . | . . . . . Machines | -11 -10 -10 -10 -9 ---------- Run | Yrd Mat Min Exi Min Machines Disabled . | . . . . . Max in Single Turn . | . . . . . Machines Repaired . | . . . . . Machines Dismantled . | . . . . . Machines Sabotaged . | . . . . . Overloaded Fab Kills . | . . . . . Hacking | -11 -10 -10 -10 -9 --------- Run | Yrd Mat Min Exi Min Machines Accessed 1 | . . . 1 . Terminals . | . . . . . Fabricators . | . . . . . Repair Stations . | . . . . . Recycling Units . | . . . . . Scanalyzers . | . . . . . Garrison Access . | . . . . . Total Hacks 1 | . . . 1 . Successful 1 | . . . 1 . Failed . | . . . . . Catastrophic . | . . . . . Database Lockouts . | . . . . . Manual 1 | . . . 1 . Terminals . | . . . . . Fabricators . | . . . . . Repair Stations . | . . . . . Recycling Units . | . . . . . Scanalyzers . | . . . . . Garrison Access . | . . . . . Terminal Hacks 1 | . . . 1 . Proto ID Catalog 1 | . . . 1 . Fabricator Hacks . | . . . . . Repair Station Hacks . | . . . . . Recycling Unit Hacks . | . . . . . Scanalyzer . | . . . . . Garrison Access Hacks . | . . . . . Unauthorized Hacks . | . . . . . Terminals . | . . . . . Fabricators . | . . . . . Repair Stations . | . . . . . Recycling Units . | . . . . . Scanalyzers . | . . . . . Garrison Access . | . . . . . Data Cores Recovered . | . . . . . Used . | . . . . . Hacking Detections . | . . . . . Full Trace Events . | . . . . . Feedback Events . | . . . . . Feedback Blocked . | . . . . . Robot Schematics Acquired . | . . . . . Robots Built . | . . . . . Authchips . | . . . . . Time . | . . . . . Total Robot Build Rating . | . . . . . Part Schematics Acquired . | . . . . . Parts Built . | . . . . . Authchips . | . . . . . Time . | . . . . . Total Part Build Rating . | . . . . . Parts Repaired . | . . . . . Time . | . . . . . Parts Recycled . | . . . . . Recycled Matter . | . . . . . Retrieved Matter . | . . . . . Retrieved Components . | . . . . . Parts Scanalyzed . | . . . . . Part Schematics Acquired . | . . . . . Parts Damaged . | . . . . . Bothacking | -11 -10 -10 -10 -9 ------------ Run | Yrd Mat Min Exi Min Used RIF Installer . | . . . . . Robots Hacked . | . . . . . Non-combat . | . . . . . Combat . | . . . . . Robot Hacks Applied . | . . . . . Relay Couplers Released . | . . . . . Fabnet Peak Effective % . | . . . . . Robots Rewired . | . . . . . Allies Hacked . | . . . . . Hacks Repelled . | . . . . . Allies | -11 -10 -10 -10 -9 -------- Run | Yrd Mat Min Exi Min Total Allies . | . . . . . Largest Group . | . . . . . Highest-Rated Group . | . . . . . Highest-Rated Ally . | . . . . . Total Orders . | . . . . . Ally Attacks . | . . . . . Total Damage . | . . . . . Kills . | . . . . . Allies Corrupted . | . . . . . Allies Melted . | . . . . . Intel | -11 -10 -10 -10 -9 ------- Run | Yrd Mat Min Exi Min Active Infowar (turns) . | . . . . . Robot Analysis Total . | . . . . . Derelict Logs Recovered 2 | . . 2 . . Drone Launches . | . . . . . Drone Recoveries . | . . . . . Exploration | -11 -10 -10 -10 -9 ------------- Run | Yrd Mat Min Exi Min Turns Passed 1490 | 62 129 204 1063 32 Spaces Moved 1143 | 45 83 135 869 11 Core 7 | 6 . . . 1 Treads . | . . . . . Legs 1136 | 39 83 135 869 10 Wheels . | . . . . . Hover . | . . . . . Flight . | . . . . . Fastest Speed 50 | 50 120 120 120 120 Average Speed 120 | 110 120 120 120 171 Slowest Speed 200 | 120 120 120 120 200 Overloaded Moves . | . . . . . Propulsion Burnouts . | . . . . . Robots Hopped . | . . . . . Potential Cave-ins 1 | . . . . 1 Cave-ins Triggered . | . . . . . Exploration Rate (%) 30 | 3 14 32 94 9 Regions Visited 4 Branch Regions 3 Pre-discovered Areas 1 | . . 1 . . Known Exits Taken . | . . . . . Unknown Exits Taken 4 | 1 1 1 1 . Scrap Searched 1 | . . 1 . . Spaces Dug . | . . . . . Terrain Destroyed . | . . . . . Melee . | . . . . . Projectile . | . . . . . AOE . | . . . . . Terrain Rammed . | . . . . . Walls Destroyed . | . . . . . Machines Disabled . | . . . . . Actions | -11 -10 -10 -10 -9 --------- Run | Yrd Mat Min Exi Min Total 1216 | 54 100 151 893 18 Wait 10 | . 8 2 . . Move 1139 | 44 82 134 868 11 Hop . | . . . . . Pick Up 16 | 2 3 2 9 . Fast Attach 7 | 6 1 . . . Attach 5 | 1 . . 3 1 Detach 1 | 1 . . . . Swap 4 | . . . 3 1 Drop 10 | . . . 10 . Fire 24 | . 6 13 . 5 Melee . | . . . . . Ram . | . . . . . Kick . | . . . . . Crush . | . . . . . Escape Stasis . | . . . . . Rewire . | . . . . . Trap . | . . . . . Miscellaneous . | . . . . . Route ------- -11/Scrapyard -10/Materials -10/Mines -10/Exiles (discovered 2 exits: [*Min x2]) -9/Mines History --------- Turn | Location | Event 7 | -11/Scrapyard | Discovered new exit (range 15) 63 | -11/Scrapyard | Entered Materials 63 | -10/Materials | Discovered new exit (range 7) 154 | -10/Materials | Met 8R-AWN 192 | -10/Materials | Entered Mines 195 | -10/Mines | Followed 8R-AWN into the Mines 262 | -10/Mines | A weapon hastily lodged in a ceiling crevice suddenly fell to the ground 287 | -10/Mines | Learned Materials interactive machine intel 313 | -10/Mines | Build established: Mutant 391 | -10/Mines | Discovered new exit (range 5) 396 | -10/Mines | Entered Exiles 432 | -10/Exiles | Welcomed by 8R-AWN 464 | -10/Exiles | Met EX-HEX 524 | -10/Exiles | Met EX-BIN 650 | -10/Exiles | Met EX-DEC 760 | -10/Exiles | Discovered new exit (range 11) 955 | -10/Exiles | Visited The Gauntlet 1155 | -10/Exiles | Discovered new exit (range 14) 1309 | -10/Exiles | Aligned with FarCom system 1310 | -10/Exiles | Given EX-Vault access code 1338 | -10/Exiles | Opened EX-Vault 1347 | -10/Exiles | Found Flying Fortress v7 1372 | -10/Exiles | Warned to stay clear of 0b10 Research branches 1459 | -10/Exiles | Left Exiles lab with Flying Fortress v7 1459 | -10/Exiles | Entered Mines 1460 | -9/Mines | Assembled infested the area 1465 | -9/Mines | Assisted by a Guerilla fighting off Assembled 1483 | -9/Mines | Core integrity fell below 50% 1487 | -9/Mines | Core integrity fell below 20% 1491 | -9/Mines | Destroyed by D-53 Grenadier with Mini Grenade Launcher Last Messages --------------- payload. 01476_ D-53 Grenadier unfolds itself. 01476_ Assault Rifle destroyed. 01476_ G-34 Mercenary destroyed. 01476_ D-53 Grenadier suffers critical hit (Destroy). 01476_ D-53 Grenadier knocked back. 01478_ GD-JOX(h) destroyed. 01480_ L-31 Rogue destroyed. 01483_ Aluminum Leg destroyed. 01484_ Mak. Axe destroyed. 01484_ R-06 Scavenger collects Aluminum Leg. 01486_ T-07 Excavator is excavating. 01487_ R-06 Scavenger collects Sml. Laser. 01488_ The unstable cave ceiling collapses. 01488_ Aluminum Leg destroyed. 01488_ Matter Pump disabled. 01488_ R-06 Scavenger collects Bore Cannon. 01489_ The unstable cave ceiling collapses. 01490_ T-07 Excavator is excavating. Map ----- +----------------------------------------------------+ | ??????????????????????????????????????????? | | ??????????????????????????????????????????? | | ??????????????????????????????????????????? | | ??????????????????????????????????????????? | | ??????????????????????????????????????????? | | ??????????????????????????????????????????? | | ??????????????????????????????????????????? | | ??????????????????????????????????????????? | | ??????????????????????????????????????????? | | ??????????????????????????????????????????? | | ??????????????????????????????????????????? | | ??????????????????????????????????????????? | | ??????????????????????????????????????????? | | ??????????????????????????????????????????? | | ??????????????????????????????????????????? | | ??????????????????????????????????????????? | | ??????????????????????????????????????????? | | ????????????#?????????????????????????????? | | ????????????# ????????????????????????????? | | ????????????# ##????????##?????#??????????? | | ???????????## ######## ##??? #??????????? | | ???????????# ### #??????????? | | ???????????# a a ???????????? | | ????????????# #??????????????? | | ????????????# #??????????????? | | ????????????# "" @ #??????????????? | | ????????????# "" #?????????????? | | ??????????# "" #?????????????? | | ??????????# t ## ##?????????????? | | ??????????#### % !*#??????????????? | | ?????????????# %r##??????????????? | | ?????????????# # r #??????????????? | | ?????????????# ## d #??????????????? | | ?????????????# ?## d ##??????????????? | | ?????????????# ??##% #???????????????? | | ????????????# ??? #???????????????? | | ???????????# ??## #???????????????? | | ???????????# ???######???????????????? | | ????????????# # ????????????????????????? | | ??????????????## ????????????????????????? | | ???????????????? ?????????????????????????? | | ??????????????????????????????????????????? | | ??????????????????????????????????????????? | | ??????????????????????????????????????????? | | ??????????????????????????????????????????? | | ??????????????????????????????????????????? | | ??????????????????????????????????????????? | | ??????????????????????????????????????????? | | ??????????????????????????????????????????? | | ??????????????????????????????????????????? | +----------------------------------------------------+ Best States ------------- Heat Dissipation 25 Energy Generation 10 Energy Capacity 250 Matter Stores 300 Matter Capacity 300 Sight Range 16 Terrain Scan Density 10 Evasion (%) 55 Targeting Accuracy 5 Item Schematics ----------------- None Robot Schematics ------------------ None Fabricated ------------ Nothing Repaired ---------- Nothing Alien Tech Used ----------------- None Achievements -------------- None Challenges ------------ None Game ------ Seed ArcsightCloakingAutohacker Manual? 0 Play Time 00:13:33 Cumulative 15.0 hours Start 2025.05.19 @ 13:28:32 End 2025.05.20 @ 17:54:16 Sessions 2 Manual Loads 0 Difficulty Rogue Special Mode None Game No. 28 Rogue 28 Adventurer 0 Explorer 0 Win Type - Total 0 Types 0/0/0/0/0/0/0/0/0/0 Lore% 17 Gallery% 25 Achievement% 23 Wizard Run 0 Options --------- Layout 1 ASCII 0 Keyboard 0 Movement Mouse Keybinds 0 Fullscreen 1 Font 24/Smallcaps Map View 25x17 Zoom Use 72% Tactical HUD 1 Map Filters NONE Filters NONE Steam 1 RUN: daed4dda-06aa-4494-8539-64474416eecc